Workbook

Sheet Collateral Tables
B1: CNH CAPITAL AUSTRALIA RECEIVABLES TRUST SERIES 2013-1 (TERM DEAL)
B2: COLLATERAL DATA TABLES
B4: OUTSTANDING RECEIVABLES | E4: 2014-03-31 | I4: 2013-12-31 | M4: 2013-09-30
B6: Opening Balance | E6: =I13 -> 343183216.4 | I6: 367572501.2 | M6: 399999996.3
B7: Principal Repayments - Scheduled | E7: =[4]Sheet1!$B$2+[5]Sheet1!$B$2+[6]Sheet1!$B$2 -> 62541048.24 | I7: 19784632.49 | M7: 28316894.3
B8: Principal Repayments - Unscheduled | E8: =MAX('[3]16 Apr 14'!$H23-'Collateral Tables'!E7,0) -> 2187328.18 | I8: 4506158.4 | M8: 3783540.98
A9: =SUM(M9,I9,E9) -> 1412940.09 | B9: Charge-Offs | E9: ='[3]16 Apr 14'!$H37 -> 987386.36 | I9: 98493.91 | M9: 327059.82
B10: Reinstatements
B11: New Receivables Purchased
B12: Non Cash Change in Receivables
B13: Closing Balance | E13: =E6-E7-E8-E9+E10+E11-E12 -> 277467453.6 | I13: 343183216.4 | M13: 367572501.2
B15: PORTFOLIO STATISTICS
B17: Summary
B18: Number of contracts | E18: ='[7]Servicer Recon'!$B$4 -> 4163 | I18: 4387 | M18: 4617
B19: Dollar value of contracts | E19: ='[7]Servicer Recon'!$B$5 -> 277467453.6 | I19: 343183216.4 | M19: 367572501.2
B20: Number of contracts closed during the Quarter | E20: ='[7]Servicer Recon'!$B$19 -> 221 | I20: 228 | M20: 183
B21: Dollar value of contracts closed during the Quarter | E21: ='[7]Servicer Recon'!$B$20 -> 10700990.2 | I21: 9069702.03 | M21: 8446613.11
A23: =SUM(M23,I23,E23) -> 113967.1336 | B23: Dollar Value of Recoveries from Collateral | E23: =MAX('[7]Servicer Recon'!$C$16,0) -> 19020.85 | I23: 94500 | M23: 446.2836364
B24: Dollar Value of Recoveries from Other Sources | E24: 0 | I24: 0 | M24: 0
B26: Average Term of Contracts (Months) | E26: ='[8]Revised Base Table'!$W$4167 -> 52.23297777 | I26: 51.71925231 | M26: 51.33729628
B27: Average Term to Maturity (Months) | E27: ='[8]Revised Base Table'!$X$4167 -> 29.55346447 | I27: 31.62549431 | M27: 33.93763482
B28: Average Residual / Balloon Payment * | E28: ='[8]Revised Base Table'!$AI$4167 -> 0.02967279746 | I28: 0.02875625437 | M28: 0.03068307372
B29: Average Seasoning (Months) | E29: =E26-E27 -> 22.6795133 | I29: 20.093758 | M29: 17.39966146
B30: Average Dollar Value of Individual Assets | E30: =E19/E18 -> 66650.84161 | I30: 78227.3117 | M30: 79612.8441
B31: Weighted Average Interest Rate | E31: ='[8]Revised Base Table'!$AA$4167 -> 5.649380812 | I31: 5.676805232 | M31: 0.05702300669
B33: Payment in Arrears
A34: 1. 0 - 30 Days | B34: 0 - 30 Days | E34: =IFERROR(VLOOKUP($A34,[9]Arrears!$A:$D,3,FALSE),0) -> 4144 | F34: =IFERROR(VLOOKUP($A34,[9]Arrears!$A:$D,2,FALSE),0) -> 1000907.04 | G34: =F34/F$50 -> 0.003607295295 | I34: 4375 | J34: 439735.71 | K34: 0.001281343868 | M34: 4592 | N34: 151245.6 | O34: 0.0004114714771
A35: 2. 31 - 60 Days | B35: 31 - 60 Days | E35: =IFERROR(VLOOKUP($A35,[9]Arrears!$A:$D,3,FALSE),0) -> 14 | F35: =IFERROR(VLOOKUP($A35,[9]Arrears!$A:$D,2,FALSE),0) -> 244533.99 | G35: =F35/F$50 -> 0.000881306931 | I35: 7 | J35: 47270.05 | K35: 0.0001377399819 | M35: 12 | N35: 113514.02 | O35: 0.0003088207622
A36: 3. 61 - 90 Days | B36: 61 - 90 Days | E36: =IFERROR(VLOOKUP($A36,[9]Arrears!$A:$D,3,FALSE),0) -> 3 | F36: =IFERROR(VLOOKUP($A36,[9]Arrears!$A:$D,2,FALSE),0) -> 32291.39 | G36: 0.0001163790188 | I36: 5 | J36: 79546.5 | K36: 0.0002317901814 | M36: 6 | N36: 75092.27 | O36: 0.0002042924042
A37: 4. 91 - 120 Days | B37: 91 - 120 Days | E37: =IFERROR(VLOOKUP($A37,[9]Arrears!$A:$D,3,FALSE),0) -> 1 | F37: =IFERROR(VLOOKUP($A37,[9]Arrears!$A:$D,2,FALSE),0) -> 8490.21 | G37: 3.059894012e-05 | I37: 0 | J37: 0 | K37: 0 | M37: 4 | N37: 69228.5 | O37: 0.0001883397147
A38: 5. 121 - 150 Days | B38: 121 - 150 Days | E38: =IFERROR(VLOOKUP($A38,[9]Arrears!$A:$D,3,FALSE),0) -> 0 | F38: =IFERROR(VLOOKUP($A38,[9]Arrears!$A:$D,2,FALSE),0) -> 0 | G38: 0 | I38: 0 | J38: 0 | K38: 0 | M38: 3 | N38: 96751.02 | O38: 0.0002632161538
A39: 6. 151 - 180 Days | B39: 151 - 180 Days | E39: =IFERROR(VLOOKUP($A39,[9]Arrears!$A:$D,3,FALSE),0) -> 1 | F39: =IFERROR(VLOOKUP($A39,[9]Arrears!$A:$D,2,FALSE),0) -> 35526.21 | G39: 0.0001280373951 | I39: 0 | J39: 0 | K39: 0 | M39: 0 | N39: 0 | O39: 0
B40: Total | E40: =SUM(E34:E39) -> 4163 | F40: =SUM(F34:F39) -> 1321748.84 | G40: =SUM(G34:G39) -> 0.00476361758 | I40: 4387 | J40: 566552.26 | K40: 0.001650874031 | M40: 4617 | N40: 505831.41 | O40: 0.001376140512
B41: * Expressed as a % of Aggreg. Rec. closing bal. | F41: > 30 days | G41: =SUM(G35:G39) -> 0.001156322285 | J41: > 30 days | K41: 0.0003695301633 | N41: > 30 days | O41: 0.0009646690349
A43: 0 - 30 Days | B43: Account Balances in Arrears
A44: 1. 0 - 30 Days | B44: 0 - 30 Days | E44: =IFERROR(VLOOKUP($A44,[9]Arrears!$A:$D,3,FALSE),0) -> 4144 | F44: =IFERROR(VLOOKUP($A44,[9]Arrears!$A:$D,4,FALSE),0) -> 276040244.9 | G44: =F44/F$50 -> 0.9948563022 | I44: 4375 | J44: 342575641.1 | K44: 0.9982295891 | M44: 4592 | N44: 366297114.9 | O44: 0.9965302456
A45: 2. 31 - 60 Days | B45: 31 - 60 Days | E45: =IFERROR(VLOOKUP($A45,[9]Arrears!$A:$D,3,FALSE),0) -> 14 | F45: =IFERROR(VLOOKUP($A45,[9]Arrears!$A:$D,4,FALSE),0) -> 805069.69 | G45: =F45/F$50 -> 0.002901492335 | I45: 7 | J45: 207562.01 | K45: 0.0006048139888 | M45: 12 | N45: 447641.17 | O45: 0.001217830955
A46: 3. 61 - 90 Days | B46: 61 - 90 Days | E46: =IFERROR(VLOOKUP($A46,[9]Arrears!$A:$D,3,FALSE),0) -> 3 | F46: =IFERROR(VLOOKUP($A46,[9]Arrears!$A:$D,4,FALSE),0) -> 415013.8 | G46: 0.00149572065 | I46: 5 | J46: 400013.29 | K46: 0.001165596891 | M46: 6 | N46: 318477.56 | O46: 0.0008664346733
A47: 4. 91 - 120 Days | B47: 91 - 120 Days | E47: =IFERROR(VLOOKUP($A47,[9]Arrears!$A:$D,3,FALSE),0) -> 1 | F47: =IFERROR(VLOOKUP($A47,[9]Arrears!$A:$D,4,FALSE),0) -> 174400.78 | G47: 0.0006285449977 | I47: 0 | J47: 0 | K47: 0 | M47: 4 | N47: 167153.97 | O47: 0.0004547510204
A48: 5. 121 - 150 Days | B48: 121 - 150 Days | E48: =IFERROR(VLOOKUP($A48,[9]Arrears!$A:$D,3,FALSE),0) -> 0 | F48: =IFERROR(VLOOKUP($A48,[9]Arrears!$A:$D,4,FALSE),0) -> 0 | G48: 0 | I48: 0 | J48: 0 | K48: 0 | M48: 3 | N48: 342113.59 | O48: 0.0009307377153
A49: 6. 151 - 180 Days | B49: 151 - 180 Days | E49: =IFERROR(VLOOKUP($A49,[9]Arrears!$A:$D,3,FALSE),0) -> 1 | F49: =IFERROR(VLOOKUP($A49,[9]Arrears!$A:$D,4,FALSE),0) -> 32724.45 | G49: 0.0001179397784 | I49: 0 | J49: 0 | K49: 0 | M49: 0 | N49: 0 | O49: 0
B50: Total | E50: =SUM(E44:E49) -> 4163 | F50: =SUM(F44:F49) -> 277467453.6 | G50: =SUM(G44:G49) -> 1 | I50: 4387 | J50: 343183216.4 | K50: 1 | M50: 4617 | N50: 367572501.2 | O50: 1
A51: NSW | F51: > 30 days | G51: =SUM(G45:G49) -> 0.005143697761 | J51: > 30 days | K51: 0.00177041088 | N51: > 30 days | O51: 0.003469754364
F52: >90 days | G52: =SUM(G47:G49) -> 0.0007464847761 | J52: >90 days | K52: 0 | N52: >90 days | O52: 0.001385488736
A54: VIC | B54: Geographic Distribution
A55: NSW | B55: New South Wales | E55: =F55/F$63 -> 0.3178575743 | F55: =IFERROR(VLOOKUP($A55,[9]Geographic!$A:$C,3,FALSE),0) -> 88195131.75 | I55: 0.3046258425 | J55: 104542476.4 | M55: 0.3059472855 | N55: 112457809
A56: VIC | B56: Victoria | E56: 0.1796111746 | F56: =IFERROR(VLOOKUP($A56,[9]Geographic!$A:$C,3,FALSE),0) -> 49836255.27 | I56: 0.1734633512 | J56: 59529710.81 | M56: 0.1756070784 | N56: 64548333.02
A57: QLD | B57: Queensland | E57: 0.1169664584 | F57: =IFERROR(VLOOKUP($A57,[9]Geographic!$A:$C,3,FALSE),0) -> 32454385.37 | I57: 0.1091496833 | J57: 37458339.39 | M57: 0.1150399122 | N57: 42285508.27
A58: SA | B58: South Australia | E58: 0.1897196694 | F58: =IFERROR(VLOOKUP($A58,[9]Geographic!$A:$C,3,FALSE),0) -> 52641033.58 | I58: 0.2027304143 | J58: 69573675.65 | M58: 0.1964366123 | N58: 72204696.93
A59: NT | B59: Northern Territory | E59: 0.00177104404 | F59: =IFERROR(VLOOKUP($A59,[9]Geographic!$A:$C,3,FALSE),0) -> 491407.08 | I59: 0.001668558987 | J59: 572621.44 | M59: 0.001668146986 | N59: 613164.96
A60: ACT | B60: Australian Capital Territory | E60: 0.0008274256205 | F60: =IFERROR(VLOOKUP($A60,[9]Geographic!$A:$C,3,FALSE),0) -> 229583.68 | I60: 0.0007719315728 | J60: 264913.96 | M60: 0.0008142892328 | N60: 299310.33
A61: TAS | B61: Tasmania | E61: 0.01185137892 | F61: =IFERROR(VLOOKUP($A61,[9]Geographic!$A:$C,3,FALSE),0) -> 3288371.93 | I61: 0.01076270381 | J61: 3693579.31 | M61: 0.01100606002 | N61: 4045525.01
A62: WA | B62: Western Australia | E62: 0.1813952747 | F62: =IFERROR(VLOOKUP($A62,[9]Geographic!$A:$C,3,FALSE),0) -> 50331284.97 | I62: 0.1968275143 | J62: 67547899.42 | M62: 0.1934806154 | N62: 71118153.72
B63: Total | E63: =SUM(E55:E62) -> 1 | F63: =SUM(F55:F62) -> 277467453.6 | I63: 1 | J63: 343183216.4 | M63: 1 | N63: 367572501.2
A64: AG
A65: CE | B65: Top Industry Distribution
A66: AGRICULTURAL MACHINERY | B66: Agricultural | E66: =F66/F$69 -> 0.9771467095 | F66: =IFERROR(VLOOKUP($A66,'[9]Top Industry'!$A:$C,3,FALSE),) -> 271126409.3 | I66: 0.9791638656 | J66: 336032604.8 | M66: 0.9764435228 | N66: 358913787.9
A67: CONSTRUCTION EQUIPMENT | B67: Construction | E67: =F67/F$69 -> 0.02285329049 | F67: =IFERROR(VLOOKUP($A67,'[9]Top Industry'!$A:$C,3,FALSE),) -> 6341044.32 | I67: 0.02083613437 | J67: 7150611.61 | M67: 0.02355647724 | N67: 8658713.26
A68: MOTOR VEHICLE - AG | B68: Motor Vehicle AG | E68: =F68/F$69 -> 0 | F68: =IFERROR(VLOOKUP($A68,'[9]Top Industry'!$A:$C,3,FALSE),) -> 0 | I68: 0 | J68: 0 | M68: 0 | N68: 0
B69: Total | E69: =SUM(E66:E68) -> 1 | F69: =SUM(F66:F68) -> 277467453.6 | I69: 1 | J69: 343183216.4 | M69: 1 | N69: 367572501.2
A70: COMBINE
A71: 40-100 HP TRACTOR | B71: Collateral Types
A72: 100<140 HP TRACTOR | B72: 100-140 HP TRACTOR | E72: =IFERROR(F72/F$108,0) -> 0.09455824814 | F72: =IFERROR(VLOOKUP($A72,[9]Collateral!$A:$C,3,FALSE),"") -> 26236836.33 | I72: =J72/$J$108 -> 0.08761331427 | J72: 30067418.99 | M72: 0.08991845161 | N72: 33059288.45
A73: 4 EWD Tractors | B73: 4 EWD Tractors | E73: 0.1274159902 | F73: =IFERROR(VLOOKUP($A73,[9]Collateral!$A:$C,3,FALSE),"") -> 35353790.36 | I73: =J73/$J$108 -> 0.1245671882 | J73: 42749368.29 | M73: 0.1233070393 | N73: 45334888.53
A74: 40<100 HP Tractor | B74: 40<100 HP Tractor | E74: =IFERROR(F74/F$108,0) -> 0 | F74: =IFERROR(VLOOKUP($A74,[9]Collateral!$A:$C,3,FALSE),"") ->  | I74: 0 | M74: 0
A75: 40<60 HP TRACTOR | B75: 40-60 HP TRACTOR | E75: =IFERROR(F75/F$108,0) -> 0.01016631037 | F75: =IFERROR(VLOOKUP($A75,[9]Collateral!$A:$C,3,FALSE),"") -> 2820820.25 | I75: 0.009510185446 | J75: 3263736.03 | M75: 0.0102989267 | N75: 3786488.56
A76: 4WD VEHICLE | B76: 4WD VEHICLE | E76: 0.0001475800836 | F76: =IFERROR(VLOOKUP($A76,[9]Collateral!$A:$C,3,FALSE),"") -> 40948.67 | I76: 0.0001338336719 | J76: 45929.47 | M76: 0.0001276589616 | N76: 46934.91
A77: 60<100 HP TRACTOR | B77: 60-100 HP TRACTOR | E77: 0.06617098319 | F77: =IFERROR(VLOOKUP($A77,[9]Collateral!$A:$C,3,FALSE),"") -> 18360294.21 | I77: 0.06217695796 | J77: 21338088.42 | M77: 0.06601199806 | N77: 24269876.16
A78: Backhoes | B78: Backhoes | E78: 0.0008818979913 | F78: =IFERROR(VLOOKUP($A78,[9]Collateral!$A:$C,3,FALSE),"") -> 244697.99 | I78: 0.0008232606564 | J78: 282529.24 | M78: 0.0008685204008 | N78: 319318.96
A79: BALERS, WINDROWERS, MOWERS, RAKES | B79: BALERS, WINDROWERS, MOWERS, RAKES | E79: 0.03763106189 | F79: =IFERROR(VLOOKUP($A79,[9]Collateral!$A:$C,3,FALSE),"") -> 10441394.92 | I79: 0.03604383276 | J79: 12369638.46 | M79: 0.03930031066 | N79: 14449095.63
A80: Cane Harvesters | B80: Cane Harvesters | E80: 0 | F80: =IFERROR(VLOOKUP($A80,[9]Collateral!$A:$C,3,FALSE),"") ->  | I80: 0 | M80: 0
A81: Combines | B81: Combines | E81: 0.3614251628 | F81: =IFERROR(VLOOKUP($A81,[9]Collateral!$A:$C,3,FALSE),"") -> 100283719.6 | I81: 0.3811649832 | J81: 130809424.9 | M81: 0.3726457121 | N81: 137006386
A82: COMMERCIAL VEHICLE | B82: COMMERCIAL VEHICLE | E82: 0 | F82: =IFERROR(VLOOKUP($A82,[9]Collateral!$A:$C,3,FALSE),"") ->  | I82: 0 | M82: 0
A83: Cotton Pickers | B83: Cotton Pickers | E83: 0.0008488541518 | F83: =IFERROR(VLOOKUP($A83,[9]Collateral!$A:$C,3,FALSE),"") -> 235529.4 | I83: 0.0007296689582 | J83: 250410.14 | M83: 0.0007105958852 | N83: 261256.66
A84: CRAWLERS / DOZERS | B84: CRAWLERS / DOZERS | E84: 0.001825777558 | F84: =IFERROR(VLOOKUP($A84,[9]Collateral!$A:$C,3,FALSE),"") -> 506593.85 | I84: 0.001586342875 | J84: 544406.25 | M84: 0.001580351726 | N84: 581029.84
A85: CULTIVATORS,SEEDERS, HARROWS | B85: CULTIVATORS,SEEDERS, HARROWS | E85: 0.02044876913 | F85: =IFERROR(VLOOKUP($A85,[9]Collateral!$A:$C,3,FALSE),"") -> 5673867.9 | I85: 0.02169556052 | J85: 7445552.24 | M85: 0.0214602304 | N85: 7890037.41
A86: Drill | B86: Drill | E86: 0.0005275140853 | F86: =IFERROR(VLOOKUP($A86,[9]Collateral!$A:$C,3,FALSE),"") -> 146367.99 | I86: 0.0005081580091 | J86: 174391.3 | M86: 0.0005272742458 | N86: 193856.89
A87: DUMP TRUCKS | B87: DUMP TRUCKS | E87: 0.000795771854 | F87: =IFERROR(VLOOKUP($A87,[9]Collateral!$A:$C,3,FALSE),"") -> 220800.79 | I87: 0.0006874451859 | J87: 235919.65 | M87: 0.0006817972085 | N87: 250668.58
A88: EXCAVATORS / GRADERS | B88: EXCAVATORS / GRADERS | E88: 0.0117218438 | F88: =IFERROR(VLOOKUP($A88,[9]Collateral!$A:$C,3,FALSE),"") -> 3252430.15 | I88: 0.01064294352 | J88: 3652479.59 | M88: 0.01293236814 | N88: 4754695.85
A89: FEEDERS, MIXERS, WAGONS, BINS, FEED STORAGE | B89: FEEDERS, MIXERS, WAGONS, BINS, FEED STORAGE | E89: 0.002118940482 | F89: =IFERROR(VLOOKUP($A89,[9]Collateral!$A:$C,3,FALSE),"") -> 587937.02 | I89: 0.001936488669 | J89: 664570.41 | M89: 0.002221406921 | N89: 816719.27
A90: Front End Loader | B90: Front End Loader | E90: 0.000443982847 | F90: =IFERROR(VLOOKUP($A90,[9]Collateral!$A:$C,3,FALSE),"") -> 123190.79 | I90: 0.0003985991257 | J90: 136792.53 | M90: 0.0003857074345 | N90: 141808.64
A91: Fronts | B91: Fronts | E91: 0.006187141222 | F91: =IFERROR(VLOOKUP($A91,[9]Collateral!$A:$C,3,FALSE),"") -> 1716730.32 | I91: 0.006852737743 | J91: 2351744.58 | M91: 0.006894400552 | N91: 2534785.38
A92: GUIDANCE SYSTEMS | B92: Guidance Systems | E92: 0.001116110938 | F92: =IFERROR(VLOOKUP($A92,[9]Collateral!$A:$C,3,FALSE),"") -> 309684.46 | I92: 0.001386073349 | J92: 475677.11 | M92: 0.001458010823 | N92: 536050.16
A93: HARVESTERS - Other | B93: HARVESTERS - Other | E93: 0.007347010697 | F93: =IFERROR(VLOOKUP($A93,[9]Collateral!$A:$C,3,FALSE),"") -> 2038556.35 | I93: 0.007503632074 | J93: 2575120.59 | M93: 0.007374727299 | N93: 2711381.62
A94: Irrigation Equipment | B94: Irrigation Equipment | E94: 0.001108850231 | F94: =IFERROR(VLOOKUP($A94,[9]Collateral!$A:$C,3,FALSE),"") -> 307669.85 | I94: 0.001016756191 | J94: 348933.66 | M94: 0.001012908199 | N94: 372404.37
A95: Other AG | B95: Other AG | E95: 0.00661013476 | F95: =IFERROR(VLOOKUP($A95,[9]Collateral!$A:$C,3,FALSE),"") -> 1834097.26 | I95: 0.006545422802 | J95: 2246279.25 | M95: 0.006539013559 | N95: 2404124.31
A96: MATERIALS HANDLING EQUIPMENT | B96: MATERIALS HANDLING EQUIPMENT | E96: 0.001407221549 | F96: =IFERROR(VLOOKUP($A96,[9]Collateral!$A:$C,3,FALSE),"") -> 390458.18 | I96: 0.001222482015 | J96: 419535.31 | M96: 0.001243940927 | N96: 457345.53
A97: Other CE | B97: Other CE | E97: 0.002882650053 | F97: =IFERROR(VLOOKUP($A97,[9]Collateral!$A:$C,3,FALSE),"") -> 799841.57 | I97: 0.002568386791 | J97: 881427.24 | M97: 0.002708992984 | N97: 995984.46
A98: Over 100 HP Tractor | B98: Over 100 HP Tractor | E98: 0 | F98: =IFERROR(VLOOKUP($A98,[9]Collateral!$A:$C,3,FALSE),"") ->  | I98: 0 | M98: 0
A99: OVER 140 HP TRACTOR | B99: OVER 140 HP TRACTOR | E99: 0.1963414265 | F99: =IFERROR(VLOOKUP($A99,[9]Collateral!$A:$C,3,FALSE),"") -> 54478355.64 | I99: 0.1923912312 | J99: 66025441.54 | M99: 0.1887911566 | N99: 69410684.82
A100: Rollers | B100: Rollers | E100: 3.940148604e-05 | F100: =IFERROR(VLOOKUP($A100,[9]Collateral!$A:$C,3,FALSE),"") -> 10932.63 | I100: 3.611345021e-05 | J100: 12393.53 | M100: 3.756651278e-05 | N100: 13811.65
A101: SCRAPERS | B101: SCRAPERS | E101: 0.00121363398 | F101: =IFERROR(VLOOKUP($A101,[9]Collateral!$A:$C,3,FALSE),"") -> 336743.93 | I101: 0.001074918563 | J101: 368894.01 | M101: 0.001076433444 | N101: 395759.97
A102: SKIDSTEER / UNILOADER | B102: SKIDSTEER / UNILOADER | E102: 0.001759818363 | F102: =IFERROR(VLOOKUP($A102,[9]Collateral!$A:$C,3,FALSE),"") -> 488292.32 | I102: 0.001691446441 | J102: 580476.03 | M102: 0.001835079536 | N102: 674682.7
A103: SPRAYING EQUIPMENT | B103: SPRAYING EQUIPMENT | E103: 0.03284558849 | F103: =IFERROR(VLOOKUP($A103,[9]Collateral!$A:$C,3,FALSE),"") -> 9113581.8 | I103: 0.0335186996 | J103: 11503055.14 | M103: 0.03379582332 | N103: 12425323.74
A104: Trenchers | B104: Trenchers | E104: 0 | F104: =IFERROR(VLOOKUP($A104,[9]Collateral!$A:$C,3,FALSE),"") ->  | I104: 9.394110335e-05 | J104: 32239.01 | M104: 0.0001051443219 | N104: 38657.21
A105: TRUCK - on Farm | B105: TRUCK - on Farm | E105: 0.0001431483927 | F105: =IFERROR(VLOOKUP($A105,[9]Collateral!$A:$C,3,FALSE),"") -> 39719.02 | I105: 0.0001157370702 | J105: =VLOOKUP(A105,[1]Collateral!$A$2:$C$33,3,0) -> 39719.02
A106: Under 40 HP Tractors | B106: Under 40 HP Tractors | E106: 0.003543900977 | F106: =IFERROR(VLOOKUP($A106,[9]Collateral!$A:$C,3,FALSE),"") -> 983317.18 | I106: 0.003354804795 | J106: 1151312.7 | M106: 0.003667684004 | N106: 1348455.42
A107: Wheel Loaders | B107: Wheel Loaders | E107: 0.0003252738612 | F107: =IFERROR(VLOOKUP($A107,[9]Collateral!$A:$C,3,FALSE),"") -> 90252.91 | I107: 0.0004088537647 | J107: 140311.75 | M107: 0.0004807681071 | N107: 176758.51
B108: Total | E108: =SUM(E72:E107) -> 1 | F108: =SUM(F72:F107) -> 277467453.6 | G108: =E13-F108 -> 0 | I108: =SUM(I72:I107) -> 1 | J108: =SUM(J72:J107) -> 343183216.4 | M108: 1 | N108: 367658560.1
A109: $ 0 - $25,000
A110: $ 25,001 to $50,000 | B110: Contract Balance Distribution
A111: $0 - $25,000 | B111: $ 0 - $25,000 | E111: =IFERROR(F111/F$122,0) -> 0.0715605686 | F111: =IFERROR(VLOOKUP($A111,'[9]Balance Distribution'!$A:$C,3,FALSE),"") -> 19855728.75 | I111: 0.05478729049 | J111: 18802078.57 | M111: 0.0512030052 | N111: 18820816.69
A112: $25,001 - $50,000 | B112: $ 25,001 to $50,000 | E112: =IFERROR(F112/F$122,0) -> 0.1274260473 | F112: =IFERROR(VLOOKUP($A112,'[9]Balance Distribution'!$A:$C,3,FALSE),"") -> 35356580.87 | I112: 0.106498401 | J112: 36548463.8 | M112: 0.1089189301 | N112: 40035603.57
A113: $50,001 - $75,000 | B113: $ 50,001 to $75,000 | E113: 0.1150435735 | F113: =IFERROR(VLOOKUP($A113,'[9]Balance Distribution'!$A:$C,3,FALSE),"") -> 31920847.4 | I113: 0.09945748495 | J113: 34132139.58 | M113: 0.1003596521 | N113: 36889448.36
A114: $75,001 - $100,000 | B114: $ 75,001 to $100,000 | E114: 0.113937981 | F114: =IFERROR(VLOOKUP($A114,'[9]Balance Distribution'!$A:$C,3,FALSE),"") -> 31614081.46 | I114: 0.09157359485 | J114: 31426520.82 | M114: 0.0869530449 | N114: 31961548.2
A115: $100,001 - $125,000 | B115: $100,001 to $125,000 | E115: 0.109694154 | F115: =IFERROR(VLOOKUP($A115,'[9]Balance Distribution'!$A:$C,3,FALSE),"") -> 30436557.58 | I115: 0.09080424831 | J115: 31162494 | M115: 0.09161931668 | N115: 33676741.39
A116: $125,001 - $150,000 | B116: $125,001 to $150,000 | E116: 0.09403039488 | F116: =IFERROR(VLOOKUP($A116,'[9]Balance Distribution'!$A:$C,3,FALSE),"") -> 26090374.23 | I116: 0.08965405649 | J116: 30767767.47 | M116: 0.09178465717 | N116: 33737516.01
A117: $150,001 - $200,000 | B117: $150,000 to $200,000 | E117: 0.1716119163 | F117: =IFERROR(VLOOKUP($A117,'[9]Balance Distribution'!$A:$C,3,FALSE),"") -> 47616721.43 | I117: 0.1672794451 | J117: 57407498.02 | M117: 0.1686315119 | N117: 61984306.61
A118: $200,001 - $300,000 | B118: $200,001 to $300,000 | E118: 0.1522000974 | F118: =IFERROR(VLOOKUP($A118,'[9]Balance Distribution'!$A:$C,3,FALSE),"") -> 42230573.48 | I118: 0.2321345207 | J118: 79664671.45 | M118: 0.2317617934 | N118: 85189262.1
A119: $300,001 - $400,000 | B119: $300,001 to $400,000 | E119: 0.01088947158 | F119: =IFERROR(VLOOKUP($A119,'[9]Balance Distribution'!$A:$C,3,FALSE),"") -> 3021473.95 | I119: 0.02983316922 | J119: 10238242.97 | M119: 0.02867134295 | N119: 10538797.24
A120: $400,001 - $500,000 | B120: $400,001 to $500,000 | E120: 0.007815783371 | F120: =IFERROR(VLOOKUP($A120,'[9]Balance Distribution'!$A:$C,3,FALSE),"") -> 2168625.51 | I120: 0.0063606992 | J120: 2182885.21 | M120: 0.004682074949 | N120: 1721002
A121: $500,001+ | B121: $500,000+ | E121: 0.02579001204 | F121: =IFERROR(VLOOKUP($A121,'[9]Balance Distribution'!$A:$C,3,FALSE),"") -> 7155888.97 | I121: 0.03161708965 | J121: 10850454.52 | M121: 0.03541467057 | N121: 13017459.04
A122: $200,001 to $300,000 | B122: Total | E122: =SUM(E111:E121) -> 1 | F122: =SUM(F111:F121) -> 277467453.6 | I122: 1 | J122: 343183216.4 | M122: 1 | N122: 367572501.2
A123: 0
A124: 0 to 5 | B124: Residual / Balloon Payment Distribution
A125: 0 | B125: 0 | E125: =IFERROR(F125/F$135,0) -> 0.8945439341 | F125: =IFERROR(VLOOKUP($A125,[9]Residual!$A:$C,3,FALSE),"") -> 248206827.6 | I125: 0.8997742796 | J125: 308787431.3 | M125: 0.8965867149 | N125: 329560621.3
A126: 0 to 5 | B126: 0 to 5 | E126: =IFERROR(F126/F$135,0) -> 0 | F126: =IFERROR(VLOOKUP($A126,[9]Residual!$A:$C,3,FALSE),"") ->  | I126: 0 | M126: 0
A127: 6 to 10 | B127: 06 to 10 | E127: 0.001835369927 | F127: =IFERROR(VLOOKUP($A127,[9]Residual!$A:$C,3,FALSE),"") -> 509255.42 | I127: 0.001571913556 | J127: 539454.35 | M127: 0.001562914767 | N127: 574484.49
A128: 11 to 15 | B128: 11 to 15 | E128: 0.007086374111 | F128: =IFERROR(VLOOKUP($A128,[9]Residual!$A:$C,3,FALSE),"") -> 1966238.18 | I128: 0.006486545564 | J128: 2226073.57 | M128: 0.006292321004 | N128: 2312884.17
A129: 16 to 20 | B129: 16 to 20 | E129: 0.01232713241 | F129: =IFERROR(VLOOKUP($A129,[9]Residual!$A:$C,3,FALSE),"") -> 3420378.04 | I129: 0.01143719804 | J129: 3925054.41 | M129: 0.01098168627 | N129: 4036565.89
A130: 21 to 25 | B130: 21 to 25 | E130: 0.01688417956 | F130: =IFERROR(VLOOKUP($A130,[9]Residual!$A:$C,3,FALSE),"") -> 4684810.31 | I130: 0.01549990488 | J130: 5319307.21 | M130: 0.01546736282 | N130: 5685377.24
A131: 26 to 30 | B131: 26 to 30 | E131: 0.04111404315 | F131: =IFERROR(VLOOKUP($A131,[9]Residual!$A:$C,3,FALSE),"") -> 11407808.86 | I131: 0.03934839215 | J131: 13503707.78 | M131: 0.03977652774 | N131: 14620757.79
A132: 31 to 35 | B132: 31 to 35 | E132: 0.009807643867 | F132: =IFERROR(VLOOKUP($A132,[9]Residual!$A:$C,3,FALSE),"") -> 2721301.97 | I132: 0.008691034169 | J132: 2982617.06 | M132: 0.009126479862 | N132: 3354643.03
A133: 36 to 40 | B133: 36 to 40 | E133: 0.009881630166 | F133: =IFERROR(VLOOKUP($A133,[9]Residual!$A:$C,3,FALSE),"") -> 2741830.76 | I133: 0.008996313812 | J133: 3087383.91 | M133: 0.008723050771 | N133: 3206353.59
A134: 41+ % | B134: 41+% | E134: 0.006519692693 | F134: =IFERROR(VLOOKUP($A134,[9]Residual!$A:$C,3,FALSE),"") -> 1809002.53 | I134: 0.008194418187 | J134: 2812186.79 | M134: 0.01148294189 | N134: 4220813.67
E135: =SUM(E125:E134) -> 1 | F135: =SUM(F125:F134) -> 277467453.6 | I135: 1 | J135: 343183216.4 | M135: 1 | N135: 367572501.2
A136: 2004 Q1
A137: 2004 Q2 | B137: Quarter of Maturity Distribution
A138: =RIGHT(B138,2)&LEFT(B138,4) -> Q12013 | B138: 2013Q1 | E138: =F138/F$167 -> 0 | F138: =IFERROR(VLOOKUP($A138,'[9]Maturity Quarter'!$A:$C,3,FALSE),0) -> 0 | I138: 0 | J138: 0 | M138: 0 | N138: 0
A139: Q22013 | B139: 2013Q2 | E139: 0 | F139: =IFERROR(VLOOKUP($A139,'[9]Maturity Quarter'!$A:$C,3,FALSE),0) -> 0 | I139: 0 | J139: 0 | M139: 0 | N139: 0
A140: =RIGHT(B140,2)&LEFT(B140,4) -> Q32013 | B140: 2013Q3 | E140: 0 | F140: =IFERROR(VLOOKUP($A140,'[9]Maturity Quarter'!$A:$C,3,FALSE),0) -> 0 | I140: 0 | J140: 0 | M140: 0.001938438206 | N140: 712516.58
A141: =RIGHT(B141,2)&LEFT(B141,4) -> Q42013 | B141: 2013Q4 | E141: 0.0001179397784 | F141: =IFERROR(VLOOKUP($A141,'[9]Maturity Quarter'!$A:$C,3,FALSE),0) -> 32724.45 | I141: 0.0009928183947 | J141: 340718.61 | M141: 0.007727535767 | N141: 2840429.65
A142: Q12014 | B142: 2014Q1 | E142: 0.003369393771 | F142: =IFERROR(VLOOKUP($A142,'[9]Maturity Quarter'!$A:$C,3,FALSE),0) -> 934897.11 | I142: 0.01247873962 | J142: 4282494 | M142: 0.01420914887 | N142: 5222892.39
A143: Q22014 | B143: 2014Q2 | E143: 0.007493262517 | F143: =IFERROR(VLOOKUP($A143,'[9]Maturity Quarter'!$A:$C,3,FALSE),0) -> 2079136.47 | I143: 0.007406964293 | J143: 2541945.83 | M143: 0.007893864286 | N143: 2901567.44
A144: Q32014 | B144: 2014Q3 | E144: 0.006795039365 | F144: =IFERROR(VLOOKUP($A144,'[9]Maturity Quarter'!$A:$C,3,FALSE),0) -> 1885402.27 | I144: 0.006814714526 | J144: 2338695.65 | M144: 0.007383964772 | N144: 2714142.4
A145: Q42014 | B145: 2014Q4 | E145: 0.009828795465 | F145: =IFERROR(VLOOKUP($A145,'[9]Maturity Quarter'!$A:$C,3,FALSE),0) -> 2727170.85 | I145: 0.009749893264 | J145: 3345999.73 | M145: 0.01513125362 | N145: 5561832.74
A146: Q12015 | B146: 2015Q1 | E146: 0.03798181791 | F146: =IFERROR(VLOOKUP($A146,'[9]Maturity Quarter'!$A:$C,3,FALSE),0) -> 10538718.3 | I146: 0.05643503287 | J146: 19367556.1 | M146: 0.05569733188 | N146: 20472807.59
A147: Q22015 | B147: 2015Q2 | E147: 0.04028175324 | F147: =IFERROR(VLOOKUP($A147,'[9]Maturity Quarter'!$A:$C,3,FALSE),0) -> 11176875.5 | I147: 0.0369692096 | J147: 12687212.26 | M147: 0.03841443145 | N147: 14120088.65
A148: Q32015 | B148: 2015Q3 | E148: 0.04032062602 | F148: =IFERROR(VLOOKUP($A148,'[9]Maturity Quarter'!$A:$C,3,FALSE),0) -> 11187661.43 | I148: 0.03882100657 | J148: 13322717.9 | M148: 0.03935613399 | N148: 14466232.61
A149: Q42015 | B149: 2015Q4 | E149: 0.05615701188 | F149: =IFERROR(VLOOKUP($A149,'[9]Maturity Quarter'!$A:$C,3,FALSE),0) -> 15581743.09 | I149: 0.05259008083 | J149: 18048033.09 | M149: 0.05885873353 | N149: 21634851.9
A150: Q12016 | B150: 2016Q1 | E150: 0.1440169985 | F150: =IFERROR(VLOOKUP($A150,'[9]Maturity Quarter'!$A:$C,3,FALSE),0) -> 39960029.85 | I150: 0.1654127188 | J150: 56766868.86 | M150: 0.1597350041 | N150: 58714194.97
A151: Q22016 | B151: 2016Q2 | E151: 0.06623964544 | F151: =IFERROR(VLOOKUP($A151,'[9]Maturity Quarter'!$A:$C,3,FALSE),0) -> 18379345.75 | I151: 0.05685960256 | J151: 19513261.29 | M151: 0.05638804628 | N151: 20726695.21
A152: Q32016 | B152: 2016Q3 | E152: 0.06072069387 | F152: =IFERROR(VLOOKUP($A152,'[9]Maturity Quarter'!$A:$C,3,FALSE),0) -> 16848016.31 | I152: 0.05472444165 | J152: 18780509.9 | M152: 0.05418514621 | N152: 19916969.72
A153: Q42016 | B153: 2016Q4 | E153: 0.05926740601 | F153: =IFERROR(VLOOKUP($A153,'[9]Maturity Quarter'!$A:$C,3,FALSE),0) -> 16444776.23 | I153: 0.05454875791 | J153: 18720218.19 | M153: 0.05569263749 | N153: 20471082.06
A154: Q12017 | B154: 2017Q1 | E154: 0.2086942428 | F154: =IFERROR(VLOOKUP($A154,'[9]Maturity Quarter'!$A:$C,3,FALSE),0) -> 57905860.15 | I154: 0.2168207407 | J154: 74409239.17 | M154: 0.2081614305 | N154: 76514417.65
A155: Q22017 | B155: 2017Q2 | E155: 0.1176703545 | F155: =IFERROR(VLOOKUP($A155,'[9]Maturity Quarter'!$A:$C,3,FALSE),0) -> 32649693.63 | I155: 0.100326235 | J155: 34430280.02 | M155: 0.09456932403 | N155: 34761082.97
A156: Q32017 | B156: 2017Q3 | E156: 0.04199929321 | F156: =IFERROR(VLOOKUP($A156,'[9]Maturity Quarter'!$A:$C,3,FALSE),0) -> 11653436.94 | I156: 0.03758949667 | J156: 12900084.37 | M156: 0.03596215083 | N156: 13218697.73
A157: Q42017 | B157: 2017Q4 | E157: 0.0391015936 | F157: =IFERROR(VLOOKUP($A157,'[9]Maturity Quarter'!$A:$C,3,FALSE),0) -> 10849419.61 | I157: 0.03429750619 | J157: 11770328.49 | M157: 0.03499458174 | N157: 12863045.94
A158: Q12018 | B158: 2018Q1 | E158: 0.04822267284 | F158: =IFERROR(VLOOKUP($A158,'[9]Maturity Quarter'!$A:$C,3,FALSE),0) -> 13380222.24 | I158: 0.04686701741 | J158: 16083973.78 | M158: 0.04401385935 | N158: 16178284.37
A159: Q22018 | B159: 2018Q2 | E159: 0.01007397042 | F159: =IFERROR(VLOOKUP($A159,'[9]Maturity Quarter'!$A:$C,3,FALSE),0) -> 2795198.92 | I159: 0.008800996947 | J159: 3020354.44 | M159: 0.008292089044 | N159: 3047943.91
A160: Q32018 | B160: 2018Q3 | E160: 0.001574299091 | F160: =IFERROR(VLOOKUP($A160,'[9]Maturity Quarter'!$A:$C,3,FALSE),0) -> 436816.76 | I160: 0.0014223299 | J160: 488119.75 | M160: 0.001327955025 | N160: 488119.75
A161: Q42018 | B161: 2018Q4 | E161: 7.318973715e-05 | F161: =IFERROR(VLOOKUP($A161,'[9]Maturity Quarter'!$A:$C,3,FALSE),0) -> 20307.77 | I161: 7.169633835e-05 | J161: 24604.98 | M161: 6.693912063e-05 | N161: 24604.98
A162: Q12019 | B162: 2019Q1 | E162: 0 | F162: =IFERROR(VLOOKUP($A162,'[9]Maturity Quarter'!$A:$C,3,FALSE),0) -> 0 | I162: 0 | J162: 0 | M162: 0 | N162: 0
A163: Q22019 | B163: 2019Q2 | E163: 0 | F163: =IFERROR(VLOOKUP($A163,'[9]Maturity Quarter'!$A:$C,3,FALSE),0) -> 0 | I163: 0 | J163: 0 | M163: 0 | N163: 0
A164: Q32019 | B164: 2019Q3 | E164: 0 | F164: =IFERROR(VLOOKUP($A164,'[9]Maturity Quarter'!$A:$C,3,FALSE),0) -> 0 | I164: 0 | J164: 0 | M164: 0 | N164: 0
A165: Q42019 | B165: 2019Q4 | E165: 0 | F165: =IFERROR(VLOOKUP($A165,'[9]Maturity Quarter'!$A:$C,3,FALSE),0) -> 0 | I165: 0 | J165: 0 | M165: 0 | N165: 0
E167: =SUM(E138:E165) -> 1 | F167: =SUM(F138:F166) -> 277467453.6 | I167: 1 | J167: 343183216.4 | M167: 1 | N167: 367572501.2
A168: 0 to 6 months
A169: 07 to 12 months | B169: Seasoning Distribution
A170: 0 to 6 months | B170: 0 to 6 months | E170: =F170/F$181 -> 0 | F170: =IFERROR(VLOOKUP($A170,[9]Seasoning!$A:$C,3,FALSE),0) -> 0 | I170: 0 | J170: 0 | M170: 0.03223101892 | N170: 11847236.24
A171: 07 to 12 months | B171: 07 to 12 months | E171: 0.03750507169 | F171: =IFERROR(VLOOKUP($A171,[9]Seasoning!$A:$C,3,FALSE),0) -> 10406436.74 | I171: 0.1185068623 | J171: 40669566.16 | M171: 0.3051640991 | N171: 112169931.2
A172: 13 to 18 months | B172: 13 to 18 months | E172: 0.3127518336 | F172: =IFERROR(VLOOKUP($A172,[9]Seasoning!$A:$C,3,FALSE),0) -> 86778454.88 | I172: 0.344343907 | J172: 118173049.5 | M172: 0.2377991657 | N172: 87408434.11
A173: 19 to 24 months | B173: 19 to 24 months | E173: 0.2540119501 | F173: =IFERROR(VLOOKUP($A173,[9]Seasoning!$A:$C,3,FALSE),0) -> 70480048.99 | I173: 0.2020032648 | J173: 69324130.14 | M173: 0.1990352719 | N173: 73159892.71
A174: 25 to 30 months | B174: 25 to 30 months | E174: 0.1915255003 | F174: =IFERROR(VLOOKUP($A174,[9]Seasoning!$A:$C,3,FALSE),0) -> 53142092.88 | I174: 0.2475728884 | J174: 84962860.12 | M174: 0.1576850189 | N174: 57960676.8
A175: 31 to 36 months | B175: 31 to 36 months | E175: 0.1526678449 | F175: =IFERROR(VLOOKUP($A175,[9]Seasoning!$A:$C,3,FALSE),0) -> 42360358.17 | I175: 0.03585937261 | J175: 12306334.83 | M175: 0.02670469741 | N175: 9815912.42
A176: 37 to 42 months | B176: 37 to 42 months | E176: 0.02268274408 | F176: =IFERROR(VLOOKUP($A176,[9]Seasoning!$A:$C,3,FALSE),0) -> 6293723.24 | I176: 0.03157016443 | J176: 10834350.57 | M176: 0.02576500247 | N176: 9470506.4
A177: 43 to 48 months | B177: 43 to 48 months | E177: 0.02328756871 | F177: =IFERROR(VLOOKUP($A177,[9]Seasoning!$A:$C,3,FALSE),0) -> 6461542.39 | I177: 0.01370962965 | J177: 4704914.8 | M177: 0.005895119855 | N177: 2166883.95
A178: 49 to 54 months | B178: 49 to 54 months | E178: 0.003671486607 | F178: =IFERROR(VLOOKUP($A178,[9]Seasoning!$A:$C,3,FALSE),0) -> 1018718.04 | I178: 0.002379484051 | J178: 816598.99 | M178: 0.001375055774 | N178: 505432.69
A179: 55 to 60 months | B179: 55 to 60 months | E179: 0.0009261515058 | F179: =IFERROR(VLOOKUP($A179,[9]Seasoning!$A:$C,3,FALSE),0) -> 256976.9 | I179: 0.003485962695 | J179: 1196323.89 | M179: 0.007342220844 | N179: 2698798.48
A180: 60+ months | B180: 61 to 72 months | E180: 0.0009698485227 | F180: =IFERROR(VLOOKUP($A180,[9]Seasoning!$A:$C,3,FALSE),0) -> 269101.4 | I180: 0.0005684641925 | J180: 195087.37 | M180: 0.001003329245 | N180: 368796.24
A181: 61 to 72 months | B181: Total | E181: =SUM(E170:E180) -> 1 | F181: =SUM(F170:F180) -> 277467453.6 | I181: 1 | J181: 343183216.4 | M181: 1 | N181: 367572501.2
B183: Remaining Term Distribution
A184: 0 - 12 months | B184: 0-12 Months | E184: =F184/F$190 -> 0.07282605951 | F184: =IFERROR(VLOOKUP($A184,'[9]Remaining Term'!$A:$C,3,FALSE),0) -> 20206861.29 | I184: 0.04120139373 | J184: 14139626.82 | M184: 0.04716175887 | N184: 15855852.1
A185: 13 - 24 months | B185: 13-24 Months | E185: 0.2841055252 | F185: =IFERROR(VLOOKUP($A185,'[9]Remaining Term'!$A:$C,3,FALSE),0) -> 78830036.64 | I185: 0.1860848676 | J185: 63861203.38 | M185: 0.1652650331 | N185: 55562345.11
A186: 25 - 36 months | B186: 25-36 Months | E186: 0.4027812741 | F186: =IFERROR(VLOOKUP($A186,'[9]Remaining Term'!$A:$C,3,FALSE),0) -> 111758694.5 | I186: 0.3286957235 | J186: 112802855.6 | M186: 0.3497533278 | N186: 117587578.8
A187: 37 - 48 months | B187: 37-48 Months | E187: 0.231268757 | F187: =IFERROR(VLOOKUP($A187,'[9]Remaining Term'!$A:$C,3,FALSE),0) -> 64169553.1 | I187: 0.3888756462 | J187: 133455595 | M187: 0.437746695 | N187: 147171077.2
A188: 49 - 60 months | B188: 49-60 Months | E188: 0.009018384201 | F188: =IFERROR(VLOOKUP($A188,'[9]Remaining Term'!$A:$C,3,FALSE),0) -> 2502308.1 | I188: 0.05514236905 | J188: 18923935.57 | M188: 0 | N188: 0
A189: 60+ Months | B189: 60+ Months | E189: 0 | F189: =IFERROR(VLOOKUP($A189,'[9]Remaining Term'!$A:$C,3,FALSE),0) -> 0 | I189: 0 | J189: 0 | M189: 7.31852269e-05 | N189: 24604.98
E190: =SUM(E184:E189) -> 1 | F190: =SUM(F184:F189) -> 277467453.6 | I190: 1 | J190: 343183216.4 | M190: 1 | N190: 336201458.2
B192: Origination LVR Distribution
A193: 01. 10% to 20% | B193: 10% to 20% | E193: =F193/F$203 -> 0.002672805117 | F193: =IFERROR(VLOOKUP($A193,'[9]LVR Band'!$A:$C,3,FALSE),0) -> 741616.43 | I193: 0.002672637839 | J193: 917204.45 | M193: 0.002575286282 | N193: 946604.42
A194: 02. 21% to 30% | B194: 21% to 30% | E194: 0.01759669423 | F194: =IFERROR(VLOOKUP($A194,'[9]LVR Band'!$A:$C,3,FALSE),0) -> 4882509.94 | I194: 0.01844295725 | J194: 6329313.39 | M194: 0.01756075541 | N194: 6454850.79
A195: 03. 31% to 40% | B195: 31% to 40% | E195: 0.05292799212 | F195: =IFERROR(VLOOKUP($A195,'[9]LVR Band'!$A:$C,3,FALSE),0) -> 14685795.2 | I195: 0.05649885307 | J195: 19389458.12 | M195: 0.05574543809 | N195: 20490490.11
A196: 04. 41% to 50% | B196: 41% to 50% | E196: 0.09793747398 | F196: =IFERROR(VLOOKUP($A196,'[9]LVR Band'!$A:$C,3,FALSE),0) -> 27174461.52 | I196: 0.1011302211 | J196: 34706194.55 | M196: 0.09857759639 | N196: 36234413.67
A197: 05. 51% to 60% | B197: 51% to 60% | E197: 0.1306934632 | F197: =IFERROR(VLOOKUP($A197,'[9]LVR Band'!$A:$C,3,FALSE),0) -> 36263182.44 | I197: 0.1349200802 | J197: 46302307.07 | M197: 0.1324470357 | N197: 48683888.19
A198: 06. 61% to 70% | B198: 61% to 70% | E198: 0.155951959 | F198: =IFERROR(VLOOKUP($A198,'[9]LVR Band'!$A:$C,3,FALSE),0) -> 43271592.96 | I198: 0.1574692483 | J198: 54040803.11 | M198: 0.1574514432 | N198: 57874820.81
A199: 07. 71% to 80% | B199: 71% to 80% | E199: 0.163172532 | F199: =IFERROR(VLOOKUP($A199,'[9]LVR Band'!$A:$C,3,FALSE),0) -> 45275066.96 | I199: 0.161630179 | J199: 55468764.69 | M199: 0.1586728404 | N199: 58323772.83
A200: 08. 81% to 90% | B200: 81% to 90% | E200: 0.1647284816 | F200: =IFERROR(VLOOKUP($A200,'[9]LVR Band'!$A:$C,3,FALSE),0) -> 45706792.33 | I200: 0.1618386593 | J200: 55540311.64 | M200: 0.1621507121 | N200: 59602142.83
A201: 09. 91% to 100% | B201: 91% to 100% | E201: 0.2143185987 | F201: =IFERROR(VLOOKUP($A201,'[9]LVR Band'!$A:$C,3,FALSE),0) -> 59466435.85 | I201: 0.205397164 | J201: 70488859.39 | M201: 0.2148188923 | N201: 78961517.56
A202: > 100% | B202: > 100% | E202: 0 | F202: =IFERROR(VLOOKUP($A202,'[9]LVR Band'!$A:$C,3,FALSE),0) -> 0 | I202: 0 | J202: 0 | M202: 0 | N202: 0
E203: =SUM(E193:E202) -> 1 | F203: =SUM(F193:F202) -> 277467453.6 | I203: 1 | J203: 343183216.4 | M203: 1 | N203: 367572501.2
B205: New v Used
A206: New | B206: New | E206: =F206/F$209 -> 0.8466162811 | F206: =IFERROR(VLOOKUP($A206,'[9]New v Used'!$A:$C,3,FALSE),0) -> 234908463.7 | I206: 0.8440846783 | J206: 289675694.8 | M206: 0.8419821362 | N206: 309489479.8
A207: USed | B207: Used | E207: =F207/F$209 -> 0.1533837189 | F207: =IFERROR(VLOOKUP($A207,'[9]New v Used'!$A:$C,3,FALSE),0) -> 42558989.9 | I207: 0.1559153217 | J207: 53507521.6 | M207: 0.1580178638 | N207: 58083021.44
A208: Used
E209: =SUM(E206:E207) -> 1 | F209: =SUM(F206:F207) -> 277467453.6 | I209: 1 | J209: 343183216.4 | M209: 1 | N209: 367572501.2
B211: Contract Type
A212: Finance Lease | B212: Finance Lease | E212: =F212/F$215 -> 0.01654725846 | F212: =IFERROR(VLOOKUP($A212,'[9]Loan Type'!$A:$C,3,FALSE),0) -> 4591325.67 | I212: 0.01496701541 | J212: 5136428.49 | M212: 0.01562613996 | N212: 5743739.35
A213: Goods Mortgage | B213: Goods Mortgage | E213: =F213/F$215 -> 0.970885962 | F213: =IFERROR(VLOOKUP($A213,'[9]Loan Type'!$A:$C,3,FALSE),0) -> 269389255.6 | I213: 0.9709367784 | J213: 333209206.5 | M213: 0.9681795041 | N213: 355876162
A214: Hire Purchase | B214: Hire Purchase | E214: =F214/F$215 -> 0.01256677954 | F214: =IFERROR(VLOOKUP($A214,'[9]Loan Type'!$A:$C,3,FALSE),0) -> 3486872.32 | I214: 0.01409620619 | J214: 4837581.38 | M214: 0.01619435589 | N214: 5952599.9
... 31 more rows

Sheet Note Balances
C1: TOTAL NOTE BALANCES
D2: Total Notes | E2: Class A1 Notes | F2: Class A2 Notes | G2: Class B Notes | H2: Class C Notes | I2: Seller Notes
C3: Initial Invested Amount | D3: 400000000 | E3: 100000000 | F3: 244800000 | G3: 13600000 | H3: 12000000 | I3: 29600000
A4: (a) | C4: Invested Amount as at Previous Payment Date: 16 October 2013 | D4: 367899561 | E4: 67899561.03 | F4: 244800000 | G4: 13600000 | H4: 12000000 | I4: 29600000
A5: (b) | C5: Stated Amount as at Previous Payment Date: 16 October 2013 | D5: 367572501.2 | E5: 67899561.03 | F5: 244800000 | G5: 13600000 | H5: 12000000 | I5: 29272940.18
A6: (d) | C6: Principal Payments to Noteholders on Payment Date | D6: 24290790.89 | E6: 24290790.89 | F6: 0 | G6: 0 | H6: 0 | I6: 0
C7: Gross Aggregate Charge-Offs | D7: 0 | E7: 0 | F7: 0 | G7: 0 | H7: 0 | I7: 0
C8: Gross Aggregate Reinstatements of charge-offs | D8: 0 | E8: 0 | F8: 0 | G8: 0 | H8: 0 | I8: 0
A9: (e) | C9: Aggregate Charge-Offs for this Collection Period | D9: 98493.91 | E9: 0 | F9: 0 | G9: 0 | H9: 0 | I9: 98493.91
A10: (f) | C10: Reinstatements relating to Charge-offs that have occurred this Collection Period | D10: 0 | E10: 0 | F10: 0 | G10: 0 | H10: 0 | I10: 0
C11: Aggregate Carry Over Charge-offs not previously reinstated | D11: 0 | E11: 0 | F11: 0 | G11: 0 | H11: 0 | I11: 0
C12: Reinstatements of Carry Over Charge-offs not previously reinstated | D12: 0 | E12: 0 | F12: 0 | G12: 0 | H12: 0 | I12: 0
C13: Aggregate Charge-Offs not reinstated and to be carried over to next period | D13: 98493.91 | E13: 0 | F13: 0 | G13: 0 | H13: 0 | I13: 98493.91
C14: Invested Amount as at Payment Date: 16 January 2014 | D14: 343608770.1 | E14: 43608770.14 | F14: 244800000 | G14: 13600000 | H14: 12000000 | I14: 29600000
C15: Stated Amount as at Payment Date: 16 January 2014 | D15: 343183216.4 | E15: 43608770.14 | F15: 244800000 | G15: 13600000 | H15: 12000000 | I15: 29174446.27
C16: Bond Factor at Payment Date: 16 January 2014 | E16: 0.4360877014 | F16: 1 | G16: 1 | H16: 1 | I16: 0.9856231848
C17: Coupon Margin | E17: 0.0045 | F17: 0.011 | G17: 0.0175 | H17: 0.025 | I17: 0.01
C18: Coupon Rate (3 month BBSW + margin) | E18: 0.03045 | F18: 0.03695 | G18: 0.04345 | H18: 0.05095 | I18: 0.03595
C19: Days in Coupon Period | E19: 92 | F19: 92 | G19: 92 | H19: 92 | I19: 92
C20: Coupon Entitlement to be paid out on the current Payment Date: 16 January 2014 | E20: 521133.78 | F20: 2279926.36 | G20: 148944.22 | H20: 154106.3 | I20: 265252.94
C23: TOTAL NOTE BALANCES
D24: Total Notes | E24: Class A1 Notes | F24: Class A2 Notes | G24: Class B Notes | H24: Class C Notes | I24: Seller Notes
C25: Initial Invested Amount | D25: 400000000 | E25: 100000000 | F25: 244800000 | G25: 13600000 | H25: 12000000 | I25: 29600000
A26: (a) | C26: Invested Amount as at Previous Payment Date: 16 January 2014 | D26: 343608770.1 | E26: 43608770.14 | F26: 244800000 | G26: 13600000 | H26: 12000000 | I26: 29600000
A27: (b) | C27: Stated Amount as at Previous Payment Date: 16 January 2014 | D27: 343183216.4 | E27: 43608770.14 | F27: 244800000 | G27: 13600000 | H27: 12000000 | I27: 29174446.27
A28: (d) | C28: Principal Payments to Noteholders on Payment Date | D28: 64728376.42 | E28: 43608770.14 | F28: 21119606.28 | G28: 0 | H28: 0 | I28: 0
C29: Gross Aggregate Charge-Offs | D29: 425553.73 | E29: 0 | F29: 0 | G29: 0 | H29: 0 | I29: 425553.73
C30: Gross Aggregate Reinstatements of charge-offs | D30: 0 | E30: 0 | F30: 0 | G30: 0 | H30: 0 | I30: 0
A31: (e) | C31: Aggregate Charge-Offs for this Collection Period | D31: 987386.36 | E31: 0 | F31: 0 | G31: 0 | H31: 0 | I31: 987386.36
A32: (f) | C32: Reinstatements relating to Charge-offs that have occurred this Collection Period | D32: 0 | E32: 0 | F32: 0 | G32: 0 | H32: 0 | I32: 0
C33: Aggregate Carry Over Charge-offs not previously reinstated | D33: 425553.73 | E33: 0 | F33: 0 | G33: 0 | H33: 0 | I33: 425553.73
C34: Reinstatements of Carry Over Charge-offs not previously reinstated | D34: 0 | E34: 0 | F34: 0 | G34: 0 | H34: 0 | I34: 0
C35: Aggregate Charge-Offs not reinstated and to be carried over to next period | D35: 1412940.09 | E35: 0 | F35: 0 | G35: 0 | H35: 0 | I35: 1412940.09
C36: Invested Amount as at Payment Date: 16 April 2014 | D36: 278880393.7 | E36: 0 | F36: 223680393.7 | G36: 13600000 | H36: 12000000 | I36: 29600000
C37: Stated Amount as at Payment Date: 16 April 2014 | D37: 277467453.6 | E37: 0 | F37: 223680393.7 | G37: 13600000 | H37: 12000000 | I37: 28187059.91
C38: Bond Factor at Payment Date: 16 April 2014 | E38: 0 | F38: 0.9137270985 | G38: 1 | H38: 1 | I38: 0.9522655375
C39: Coupon Margin | E39: 0.0045 | F39: 0.011 | G39: 0.0175 | H39: 0.025 | I39: 0.01
C40: Coupon Rate (3 month BBSW + margin) | E40: 0.03075 | F40: 0.03725 | G40: 0.04375 | H40: 0.05125 | I40: 0.03625
C41: Days in Coupon Period | E41: 90 | F41: 90 | G41: 90 | H41: 90 | I41: 90
C42: Coupon Entitlement to be paid out on the current Payment Date: 16 April 2014 | E42: 330650.06 | F42: 2248471.23 | G42: 146712.33 | H42: 151643.84 | I42: 260771.59

Sheet Cumulative Defaults
A1: Cumulative Defaults & Losses
A3: Month | B3: Gross Losses | C3: Recoveries | D3: Net Losses
A4: 2013-09-01 | B4: ='Collateral Tables'!M9/400000000 -> 0.00081764955 | C4: ='Collateral Tables'!M23/400000000 -> 1.115709091e-06 | D4: =B4-C4 -> 0.0008165338409
A5: 2013-12-01 | B5: ='Collateral Tables'!I9/400000000 -> 0.000246234775 | C5: ='Collateral Tables'!I23/400000000 -> 0.00023625 | D5: =B5-C5 -> 9.984775e-06
A6: 2014-03-01 | B6: ='Collateral Tables'!E9/400000000 -> 0.0024684659 | C6: ='Collateral Tables'!E23/400000000 -> 4.7552125e-05 | D6: =B6-C6 -> 0.002420913775
